Workbook

Sheet рабочка
A5: Шифр | C5: Название | D5: Ед. изм. | E5: Кол-во | F5: Цена | G5: Стоимость
A6: 2-03 | C6: Демонтаж конструкций бетонных М 150 - 200 | D6: м3 | E6: 1 | F6: 500 | G6: =E6*F6 -> 500
B7: 126 | C7: Круг алмазный 230 бетон | D7: шт. | E7: =E6*0.9 -> 0.9 | F7: 420 | G7: 378
B8: 190 | C8: Пика к отбойному молотку 400 мм | D8: шт. | E8: =E6*2 -> 2 | F8: 488 | G8: 976
A9: 2-04 | C9: Демонтаж конструкций бетонных М 250 - 300 | D9: м3 | E9: 1 | F9: 600 | G9: 600
B10: 126 | C10: Круг алмазный 230 бетон | D10: шт. | E10: =E9*1.2 -> 1.2 | F10: 420 | G10: 504
B11: 190 | C11: Пика к отбойному молотку 400 мм | D11: шт. | E11: =E9*3 -> 3 | F11: 488 | G11: 1464
A12: 2-05 | C12: Демонтаж перегородок кирпичных, пеногазо-гипсоблочных | D12: м2 | E12: 1 | F12: 55 | G12: 55
A13: 2-06 | C13: Демонтаж перегородок из ГКЛ | D13: м2 | E13: 1 | F13: 40 | G13: 40
C14: 1. ДЕМОНТАЖНЫЕ РАБОТЫ
A15: 2-51 | C15: Пробивка ниши в кирпичной стене под сейф, эл.счетчик и отопительные приборы (размером до 0,35 м3) | D15: шт. | E15: 1 | F15: 156 | G15: =E15*F15 -> 156
B16: 126 | C16: Круг алмазный 230 бетон | D16: шт. | E16: =E15*0.1 -> 0.1 | F16: 420 | G16: 42
B17: 190 | C17: Пика к отбойному молотку 400 мм | D17: шт. | E17: =E15*0.6 -> 0.6 | F17: 488 | G17: 292.8
A18: 2-52 | C18: Пробивка ниши в бетонной стене под сейф, отопительные приборы, эл.счетчик (размером до 0,35 м3) | D18: шт. | E18: 1 | F18: 270 | G18: 270
B19: 126 | C19: Круг алмазный 230 бетон | D19: шт. | E19: =E18*0.25 -> 0.25 | F19: 420 | G19: 105
B20: 190 | C20: Пика к отбойному молотку 400 мм | D20: шт. | E20: =E18 -> 1 | F20: 488 | G20: 488
A21: 2-53 | C21: Защита пола, стен и прочих конструкций ДВП | D21: м2 | E21: 1 | F21: 9 | G21: 9
B22: 197 | C22: Плита ДВП t-2,5 мм | D22: м2 | E22: =E21*1.15 -> 1.15 | F22: 16.4 | G22: 18.86
A23: 2-28 | C23: Демонтаж конструкций старой кровли (без медного покрытия) | D23: м2 | E23: 10 | F23: 90,00 | G23: =E23*F23 -> 900
A24: 2-57 | C24: Ограждение мест повышенной опасности | D24: м.п. | E24: 45,00 | F24: 20,00 | G24: =E24*F24 -> 900
B25: 057 | C25: Доска обрезная 40 мм | D25: м3 | E25: 0,25 | F25: 2500,00 | G25: 625
C26: 4. др | G26: 0
A27: 2-42 | C27: Пробивка сквозных отверстий диаметром до 50 мм в бетоне до 250 мм. | D27: шт. | E27: 252 | F27: 65,00 | G27: 16380
B28: 190 | C28: Пика к отбойному молотку 400 мм | D28: шт. | E28: 50,4 | F28: 488,00 | G28: 24595.2
C29: 6. сопутствующее | G29: 0
A30: 2-51 | C30: Пробивка ниши в кирпичной стене под установку коссоуров | D30: шт. | E30: 4 | F30: 156,00 | G30: 624
B31: 126 | C31: Круг алмазный 230 бетон | D31: шт. | E31: 0,4 | F31: 420,00 | G31: 168
B32: 190 | C32: Пика к отбойному молотку 400 мм | D32: шт. | E32: 2,4 | F32: 488,00 | G32: 1171.2
C33: Установка лесов | D33: м2 | E33: 520 | F33: 14 | G33: 7280
C34: Стоимость работ (грн.): | G34: =SumByInteriorColor($G$14:$G$33,J2,0) -> 26519
C35: Стоимость материалов (грн.): | G35: =SumByInteriorColor1($G$14:$G$33,O1,1) -> 27506.06

Sheet база
M1: 1
C2: Название | D2: Ед. изм. | E2: Норма | F2: Цена
C3: ЗЕМЛЯНЫЕ РАБОТЫ
A4: 1-01 | C4: Разработка грунта песчаного вручную | D4: м3 | E4: 1 | F4: 80 | G4: =E4*F4 -> 80
A5: 1-02 | C5: Разработка грунта песчаного вручную в траншее | D5: м3 | E5: 1 | F5: 110 | G5: =E5*F5 -> 110
A6: 1-03 | C6: Разработка грунта глинистого вручную | D6: м3 | E6: 1 | F6: 95 | G6: 95
A7: 1-04 | C7: Разработка грунта глинистого вручную в траншее | D7: м3 | E7: 1 | F7: 150 | G7: 150
A8: 1-05 | C8: Разработка грунта с мусором и камнем вручную | D8: м3 | E8: 1 | F8: 140 | G8: 140
A9: 1-06 | C9: Разработка грунта с мусором и камнем вручную в траншее | D9: м3 | E9: 1 | F9: 200 | G9: 200
A10: 1-07 | C10: Обратная засыпка грунта вручную | D10: м3 | E10: 1 | F10: 70 | G10: 70
C11: ДЕМОНТАЖНЫЕ И ВСПОМОГАТЕЛЬНЫЕ РАБОТЫ | G11: 0
A12: 2-01 | C12: Демонтаж капитальных стен кирпичных | D12: м3 | E12: 1 | F12: 350 | G12: 350
B13: 126 | C13: Круг алмазный 230 бетон | D13: шт. | E13: =E12*0.3 -> 0.3 | F13: 420 | G13: 126
B14: 190 | C14: Пика к отбойному молотку 400 мм | D14: шт. | E14: =E12*0.3 -> 0.3 | F14: 488 | G14: 146.4
A15: 2-02 | C15: Демонтаж контструкций бетонных М 50 - 100 | D15: м3 | E15: 1 | F15: 450 | G15: 450
B16: 126 | C16: Круг алмазный 230 бетон | D16: шт. | E16: =E15*0.6 -> 0.6 | F16: 420 | G16: 252
B17: 190 | C17: Пика к отбойному молотку 400 мм | D17: шт. | E17: =E15 -> 1 | F17: 488 | G17: 488
A18: 2-03 | C18: Демонтаж конструкций бетонных М 150 - 200 | D18: м3 | E18: 1 | F18: 500 | G18: 500
B19: 126 | C19: Круг алмазный 230 бетон | D19: шт. | E19: =E18*0.9 -> 0.9 | F19: 420 | G19: 378
B20: 190 | C20: Пика к отбойному молотку 400 мм | D20: шт. | E20: =E18*2 -> 2 | F20: 488 | G20: 976
A21: 2-04 | C21: Демонтаж конструкций бетонных М 250 - 300 | D21: м3 | E21: 1 | F21: 600 | G21: 600
B22: 126 | C22: Круг алмазный 230 бетон | D22: шт. | E22: =E21*1.2 -> 1.2 | F22: 420 | G22: 504
B23: 190 | C23: Пика к отбойному молотку 400 мм | D23: шт. | E23: =E21*3 -> 3 | F23: 488 | G23: 1464
A24: 2-05 | C24: Демонтаж перегородок кирпичных, пеногазо-гипсоблочных | D24: м2 | E24: 1 | F24: 55 | G24: 55
A25: 2-06 | C25: Демонтаж перегородок из ГКЛ | D25: м2 | E25: 1 | F25: 40 | G25: 40
A26: 2-07 | C26: Демонтаж перегородок деревянных | D26: м2 | E26: 1 | F26: 45 | G26: 45
A27: 2-08 | C27: Демонтаж перекрытия деревянного в комплексе | D27: м2 | E27: 1 | F27: 65 | G27: 65
A28: 2-09 | C28: Демонтаж дощатого настила | D28: м2 | E28: 1 | F28: 18 | G28: 18
A29: 2-10 | C29: Демонтаж перекрытий железобетонных толщиной до 22 см | D29: м2 | E29: 1 | F29: 160 | G29: 160
B30: 126 | C30: Круг алмазный 230 бетон | D30: шт. | E30: =E29*0.12 -> 0.12 | F30: 420 | G30: 50.4
B31: 190 | C31: Пика к отбойному молотку 400 мм | D31: шт. | E31: =E29*0.1 -> 0.1 | F31: 488 | G31: 48.8
A32: 2-11 | C32: Демонтаж пристенка,подв.потолка из ГКЛ | D32: м2 | E32: 1 | F32: 22 | G32: 22
B33: 126 | C33: Круг алмазный 230 бетон | D33: шт. | E33: =E32*0.12 -> 0.12 | F33: 420 | G33: 50.4
A34: 2-12 | C34: Срубка штукатурки | D34: м2 | E34: 1 | F34: 30 | G34: 30
A35: 2-13 | C35: Срубка откосов из кирпича и бетона | D35: м.п. | E35: 1 | F35: 30 | G35: 30
B36: 126 | C36: Круг алмазный 230 бетон | D36: шт. | E36: =E35*0.12 -> 0.12 | F36: 420 | G36: 50.4
B37: 190 | C37: Пика к отбойному молотку 400 мм | D37: шт. | E37: =E35*0.02 -> 0.02 | F37: 488 | G37: 9.76
A38: 2-14 | C38: Демонтаж керамической плитки с раствором | D38: м2 | E38: 1 | F38: 45 | G38: 45
A39: 2-15 | C39: Размывка стен и потолков | D39: м2 | E39: 1 | F39: 25 | G39: 25
A40: 2-16 | C40: (резерв) | D40: шт. | E40: 1 | F40: 0 | G40: 0
A41: 2-17 | C41: Демонтаж падуг, багетов | D41: м.п. | E41: 1 | F41: 8 | G41: 8
A42: 2-18 | C42: Демонтаж потолка "Армстронг" | D42: м2 | E42: 1 | F42: 18 | G42: 18
A43: 2-19 | C43: Демонтаж осветительных приборов | D43: шт. | E43: 1 | F43: 20 | G43: 20
A44: 2-20 | C44: Демонтаж столярки | D44: шт. | E44: 1 | F44: 80 | G44: 80
A45: 2-21 | C45: Демонтаж подоконников | D45: м.п. | E45: 1 | F45: 14 | G45: 14
A46: 2-22 | C46: Демонтаж отливов | D46: шт. | E46: 1 | F46: 14 | G46: 14
A47: 2-23 | C47: Демонтаж стяжки | D47: м2 | E47: 1 | F47: 40 | G47: 40
B48: 190 | C48: Пика к отбойному молотку 400 мм | D48: шт. | E48: =E47*0.05 -> 0.05 | F48: 488 | G48: 24.4
A49: 2-24 | C49: Демонтаж асфальта | D49: м2 | E49: 1 | F49: 40 | G49: 40
B50: 190 | C50: Пика к отбойному молотку 400 мм | D50: шт. | E50: =E49*0.05 -> 0.05 | F50: 488 | G50: 24.4
A51: 2-25 | C51: Демонтаж паркетного пола | D51: м2 | E51: 1 | F51: 24 | G51: 24
A52: 2-26 | C52: Демонтаж рулонных покрытий пола | D52: м2 | E52: 1 | F52: 15 | G52: 15
A53: 2-27 | C53: Демонтаж пластикового, деревянного плинтуса | D53: м.п. | E53: 1 | F53: 5 | G53: 5
A54: 2-28 | C54: Демонтаж кровли и стропильной конструкции деревянной | D54: м2 | E54: 1 | F54: 90 | G54: 90
A55: 2-29 | C55: Демонтаж старых водоприемных воронок | D55: шт. | E55: 1 | F55: 60 | G55: 60
A56: 2-30 | C56: Демонтаж металлоконструкций | D56: тонн | E56: 1 | F56: 1000 | G56: 1000
B57: 106 | C57: Кислород 40 л | D57: балл. | E57: =E56*0.3 -> 0.3 | F57: 95 | G57: 28.5
B58: 210 | C58: Пропан 50 л | D58: балл. | E58: =E56*0.1 -> 0.1 | F58: 507 | G58: =E58*F58 -> 50.7
B59: 332 | C59: Электроды АНО-4 d-3 | D59: кг | E59: =E56*20 -> 20 | F59: 58.8 | G59: 1176
A60: 2-31 | C60: Сверление верткальных отверстий в ЖБ (Хилти ф110) на 1 см прохода | D60: см | E60: 1 | F60: 9 | G60: 9
A61: 2-32 | C61: Сверление вертикальных отверстий в ЖБ (Хилти ф160) на 1 см прохода | D61: см | E61: 1 | F61: 10 | G61: 10
A62: 2-33 | C62: Сверление горизонтальных отверстий в ЖБ (Хилти ф110) на 1 см прохода | D62: см | E62: 1 | F62: 9 | G62: 9
A63: 2-34 | C63: Сверление горизонтальных отверстий в ЖБ (Хилти ф160) на 1 см прохода | D63: см | E63: 1 | F63: 11 | G63: 11
A64: 2-35 | C64: Пробивка сквозных отверстий диаметром до 20 мм в кирпиче б=250 мм. | D64: шт. | E64: 1 | F64: 18 | G64: 18
B65: 309 | C65: Шнек 400 мм | D65: шт. | E65: =E64*0.06 -> 0.06 | F65: 494 | G65: 29.64
A66: 2-36 | C66: Пробивка сквозных отверстий диаметром до 50 мм в кирпиче б=250 мм. | D66: шт. | E66: 1 | F66: 42 | G66: 42
B67: 309 | C67: Шнек 400 мм | D67: шт. | E67: =E66*0.08 -> 0.08 | F67: 494 | G67: 39.52
A68: 2-37 | C68: Пробивка сквозных отверстий диаметром до 120 мм в кирпиче б=250 мм. | D68: шт. | E68: 1 | F68: 78 | G68: 78
B69: 309 | C69: Шнек 400 мм | D69: шт. | E69: =E68*0.12 -> 0.12 | F69: 494 | G69: 59.28
A70: 2-38 | C70: Пробивка сквозных отверстий в капитальной кирпичной стене под коммуникации 130х130-300х300 мм б=250 мм | D70: шт. | E70: 1 | F70: 110 | G70: 110
B71: 190 | C71: Пика к отбойному молотку 400 мм | D71: шт. | E71: =E70*0.15 -> 0.15 | F71: 488 | G71: 73.2
A72: 2-39 | C72: Пробивка сквозных отверстий диаметром до 50 мм в кирпиче б=510 мм. | D72: шт. | E72: 1 | F72: 78 | G72: 78
B73: 309 | C73: Шнек 400 мм | D73: шт. | E73: =E72*0.12 -> 0.12 | F73: 494 | G73: 59.28
A74: 2-40 | C74: Пробивка сквозных отверстий диаметром до 120 мм в кирпиче б=510 мм. | D74: шт. | E74: 1 | F74: 109 | G74: 109
B75: 309 | C75: Шнек 400 мм | D75: шт. | E75: =E74*0.15 -> 0.15 | F75: 494 | G75: 74.1
A76: 2-41 | C76: Пробивка сквозных отверстий в капитальной кирпичной стене под коммуникации 130х130-300х300 мм б=510 мм | D76: шт. | E76: 1 | F76: 169 | G76: 169
B77: 190 | C77: Пика к отбойному молотку 400 мм | D77: шт. | E77: =E76*0.2 -> 0.2 | F77: 488 | G77: 97.6
A78: 2-42 | C78: Пробивка сквозных отверстий диаметром до 50 мм в бетоне до 250 мм. | D78: шт. | E78: 1 | F78: 65 | G78: 65
B79: 190 | C79: Пика к отбойному молотку 400 мм | D79: шт. | E79: =E78*0.2 -> 0.2 | F79: 488 | G79: 97.6
A80: 2-43 | C80: Пробивка сквозных отверстий диаметром до 120 мм в бетоне толщиной до 250 мм | D80: шт. | E80: 1 | F80: 130 | G80: 130
B81: 190 | C81: Пика к отбойному молотку 400 мм | D81: шт. | E81: =E80*0.3 -> 0.3 | F81: 488 | G81: 146.4
A82: 2-44 | C82: Пробивка сквозных отверстий под коммуникации 130х130-300х300 мм в бетоне толщиной до 250 мм | D82: шт. | E82: 1 | F82: 156 | G82: 156
B83: 190 | C83: Пика к отбойному молотку 400 мм | D83: шт. | E83: =E82*0.35 -> 0.35 | F83: 488 | G83: 170.8
A84: 2-45 | C84: Пробивка сквозных отверстий диаметром до 50 мм в бетоне до 500 мм. | D84: шт. | E84: 1 | F84: 156 | G84: 156
B85: 190 | C85: Пика к отбойному молотку 400 мм | D85: шт. | E85: =E84 -> 1 | F85: 488 | G85: 488
A86: 2-46 | C86: Пробивка сквозных отверстий диаметром до 120 мм в бетоне толщиной до 500 мм | D86: шт. | E86: 1 | F86: 169 | G86: 169
B87: 190 | C87: Пика к отбойному молотку 400 мм | D87: шт. | E87: =E86*1.5 -> 1.5 | F87: 488 | G87: 732
A88: 2-47 | C88: Пробивка сквозных отверстий под коммуникации 130х130-300х300 мм в бетоне толщиной до 500 мм | D88: шт. | E88: 1 | F88: 208 | G88: 208
B89: 190 | C89: Пика к отбойному молотку 400 мм | D89: шт. | E89: =E88*1.8 -> 1.8 | F89: 488 | G89: 878.4
A90: 2-48 | C90: Пробивка сквозных отверстий диаметром до 50 мм в бетоне до 1000 мм. | D90: шт. | E90: 1 | F90: 168 | G90: 168
B91: 190 | C91: Пика к отбойному молотку 400 мм | D91: шт. | E91: =E90*1.8 -> 1.8 | F91: 488 | G91: 878.4
A92: 2-49 | C92: Пробивка сквозных отверстий диаметром до 120 мм в бетоне толщиной до 1000 мм | D92: шт. | E92: 1 | F92: 208 | G92: 208
B93: 190 | C93: Пика к отбойному молотку 400 мм | D93: шт. | E93: =E92*2.5 -> 2.5 | F93: 488 | G93: 1220
A94: 2-50 | C94: Пробивка сквозных отверстий под коммуникации 130х130-300х300 мм в бетоне толщиной до 1000 мм | D94: шт. | E94: 1 | F94: 273 | G94: 273
B95: 190 | C95: Пика к отбойному молотку 400 мм | D95: шт. | E95: =E94*3 -> 3 | F95: 488 | G95: 1464
A96: 2-51 | C96: Пробивка ниши в кирпичной стене под сейф, эл.счетчик и отопительные приборы (размером до 0,35 м3) | D96: шт. | E96: 1 | F96: 156 | G96: 156
B97: 126 | C97: Круг алмазный 230 бетон | D97: шт. | E97: =E96*0.1 -> 0.1 | F97: 420 | G97: 42
B98: 190 | C98: Пика к отбойному молотку 400 мм | D98: шт. | E98: =E96*0.6 -> 0.6 | F98: 488 | G98: 292.8
A99: 2-52 | C99: Пробивка ниши в бетонной стене под сейф, отопительные приборы, эл.счетчик (размером до 0,35 м3) | D99: шт. | E99: 1 | F99: 270 | G99: 270
B100: 126 | C100: Круг алмазный 230 бетон | D100: шт. | E100: =E99*0.25 -> 0.25 | F100: 420 | G100: 105
B101: 190 | C101: Пика к отбойному молотку 400 мм | D101: шт. | E101: =E99 -> 1 | F101: 488 | G101: 488
A102: 2-53 | C102: Защита пола, стен и прочих конструкций ДВП | D102: м2 | E102: 1 | F102: 9 | G102: 9
B103: 197 | C103: Плита ДВП t-2,5 мм | D103: м2 | E103: =E102*1.15 -> 1.15 | F103: 16.4 | G103: 18.86
A104: 2-54 | C104: Защита пола, стен и прочих конструкций пленкой п/э | D104: м2 | E104: 1 | F104: 4 | G104: 4
B105: 200 | C105: Пленка п/е 1500*100 | D105: м2 | E105: =E104*1.15 -> 1.15 | F105: 4.86 | G105: 5.589
A106: 2-55 | C106: Защита пола, стен и прочих конструкций гофрокартоном | D106: м2 | E106: 1 | F106: 4 | G106: 4
B107: 044 | C107: Гофрокартон | D107: м2 | E107: =E106*1.15 -> 1.15 | F107: 7.09 | G107: 8.1535
A108: 2-56 | C108: Заделка проемов под коммуникации | D108: место | E108: 1 | F108: 60 | G108: 60
B109: 184 | C109: Пена монтажная Soudal 750 мл | D109: шт. | E109: =E108*0.3 -> 0.3 | F109: 117 | G109: 35.1
A110: 2-57 | C110: Ограждение мест повышенной опасности | D110: м.п. | E110: 1 | F110: 20 | G110: 20
B111: 057 | C111: Доска обрезная 40 мм | D111: м3 | E111: =E110*0.01 -> 0.01 | F111: 2300 | G111: 23
A112: 2-58 | C112: Устройство переходных мостов | D112: м2 | E112: 1 | F112: 50 | G112: 50
B113: 040 | C113: Гвозди | D113: кг | E113: =E112*0.1 -> 0.1 | F113: 21 | G113: 2.1
B114: 057 | C114: Доска обрезная 40 мм | D114: м3 | E114: =E112*0.06 -> 0.06 | F114: 2300 | G114: 138
A115: 2-59 | C115: Вынос мусора с 1-го этажа после ДМ и строительных работ | D115: м3 | E115: 1 | F115: 125 | G115: 125
B116: 155 | C116: Мешки для строительного мусора | D116: шт. | E116: =E115*50 -> 50 | F116: 4.9 | G116: 245
A117: 2-60 | C117: Погрузка мусора на машину вручную | D117: м3 | E117: 1 | F117: 60 | G117: 60
A118: 2-61 | C118: Вынос мусора с 2-го этажа и выше вручную (за 1 эт) | D118: м3 | E118: 1 | F118: 60 | G118: 60
A119: 2-62 | C119: Вывоз строительного мусора | D119: м3 | E119: 1 | F119: 250 | G119: 250
A120: 2-63 | C120: Подъем (спуск) материалов вручную за 1эт или лифтом | D120: тонн | E120: 1 | F120: 135 | G120: 135
A121: 2-64 | C121: Доставка материалов к месту укладки вручную на расстояние более 30 м | D121: тонн | E121: 1 | F121: 85 | G121: 85
A122: 2-65 | C122: Доставка материалов к месту укладки вручную на расстояние более 30 м (надбавка за каждые 10м) | D122: тонн | E122: 1 | F122: 22 | G122: =E122*F122 -> 22
A123: 2-66 | C123: Установка лесов и разборка за 1 раз | D123: м2 | E123: 1 | F123: 28 | G123: 28

Sheet макросы не включены (hidden)
